bitfinex/quotes_BTCUSD_20251224
["timestamp","ask_amount","ask_price","bid_price","bid_amount"]
[1766599663941,0.01148,87398.0,87388.0,0.01144321]
[1766599664349,0.01148,87398.0,87389.0,0.05721539]
[1766599664570,0.01148,87398.0,87388.0,0.05721609]
[1766599664571,0.000549,87389.0,87388.0,0.05721609]
[1766599664725,0.6822819,87398.0,87388.0,0.05721609]
[1766599664726,0.6822819,87398.0,87389.0,0.01144308]
[1766599664898,0.67084,87398.0,87390.0,0.01144295]
[1766599665098,0.67084,87398.0,87391.0,0.01144282]
[1766599665338,0.67084,87398.0,87390.0,0.06865756]
[1766599665699,0.67084,87398.0,87384.0,0.05721745]
[1766599665896,0.65936,87392.0,87383.0,0.01144387]
[1766599666105,0.67080295,87390.0,87376.0,0.09380832]
[1766599666302,0.65936,87388.0,87380.0,0.01144426]
[1766599667947,0.01144348,87386.0,87376.0,0.01144479]
[1766599668265,0.65936,87386.0,87377.0,0.01144465]
[1766599668882,0.65936,87386.0,87379.0,0.01144439]
[1766599669508,0.65936,87386.0,87378.0,0.01144452]
[1766599669718,0.00055,87379.0,87376.0,0.01144479]
[1766599669985,0.65936,87385.0,87377.0,0.01144465]
[1766599670343,0.65936,87385.0,87378.0,0.06866716]
[1766599670692,0.65936,87385.0,87378.0,0.01144452]
[1766599670991,0.65945329,87385.0,87378.0,0.01144452]
[1766599671344,0.65945329,87385.0,87378.0,0.06866704]
[1766599671543,0.01148,87384.0,87379.0,0.01144439]
[1766599671788,0.01148,87384.0,87378.0,0.06866704]
[1766599671946,0.01148,87384.0,87376.0,0.01144479]
[1766599672147,0.01148,87384.0,87377.0,0.01144465]
[1766599672731,0.01148,87384.0,87376.0,0.06866816]
[1766599672907,0.01148,87384.0,87377.0,0.01144465]
[1766599673678,0.67084,87384.0,87376.0,0.01144479]
[1766599674022,0.67084,87384.0,87377.0,0.06866776]
[1766599674381,0.67084,87384.0,87376.0,0.06866861]
[1766599674577,0.67084,87384.0,87378.0,0.06866701]
[1766599674794,0.01148,87383.0,87379.0,0.01144439]
[1766599675434,0.01148,87383.0,87380.0,0.01144426]
[1766599675761,0.010931,87383.0,87382.0,0.05722002]
[1766599675950,9.329e-05,87385.0,87384.0,0.05721871]
[1766599676115,0.65936,87393.0,87389.0,0.01144308]
[1766599676318,0.65936,87393.0,87388.0,0.06865885]
[1766599676517,0.65936,87393.0,87388.0,0.01144321]
[1766599676876,0.01148,87392.0,87386.0,0.0686603]
[1766599677010,0.01148,87392.0,87388.0,0.01144321]
[1766599677491,0.01148,87392.0,87391.0,0.05721412]
[1766599677619,0.06864959,87402.0,87389.0,0.01144308]
[1766599677620,0.01144086,87406.0,87396.0,0.0572104]
[1766599677823,0.65936,87408.0,87400.0,0.01144164]
[1766599678026,0.01148,87407.0,87400.0,0.06864933]
[1766599678508,0.01148,87407.0,87400.0,0.01144164]
[1766599678714,0.01148,87407.0,87399.0,0.06865062]
[1766599678914,0.01148,87407.0,87400.0,0.01144164]
[1766599679577,0.01148,87407.0,87397.0,0.05721017]
[1766599679780,0.000549,87400.0,87397.0,0.05721017]
[1766599680148,0.02292073,87407.0,87398.0,0.0114419]
[1766599680344,0.02292073,87407.0,87397.0,0.06865221]
[1766599680764,0.02292073,87407.0,87398.0,0.0114419]
[1766599681382,0.01144086,87406.0,87397.0,0.06865221]
[1766599681583,0.01148,87407.0,87398.0,0.05720944]
[1766599682002,0.01148,87407.0,87398.0,0.06865134]
[1766599682198,0.02292073,87407.0,87398.0,0.0114419]
[1766599682400,0.01144073,87407.0,87398.0,0.0114419]
[1766599682682,0.02292086,87406.0,87397.0,0.06865221]
[1766599682909,0.02292086,87406.0,87389.0,0.01144308]
[1766599682910,0.000549,87397.0,87389.0,0.01144308]
[1766599683122,0.000549,87397.0,87388.0,0.01144321]
[1766599683268,0.71606195,87398.0,87388.0,0.01144321]
[1766599683480,0.0686523,87397.0,87388.0,0.01144321]
[1766599683674,0.636117,87392.0,87382.0,0.011444]
[1766599683894,0.63593,87390.0,87382.0,0.011444]
[1766599684098,0.63593,87390.0,87383.0,0.06866304]
[1766599684446,0.63593,87390.0,87383.0,0.01144387]
[1766599684632,0.63593,87390.0,87383.0,0.06866314]
[1766599684829,0.000549,87383.0,87381.0,0.0686648]
[1766599685033,0.61732055,87390.0,87382.0,0.06866377]
[1766599685381,0.61732055,87390.0,87383.0,0.01144387]
[1766599685828,0.61732055,87390.0,87382.0,0.011444]
[1766599686970,0.01144308,87389.0,87374.0,0.24034594]
[1766599687111,0.70458964,87388.0,87377.0,0.08014783]
[1766599687315,0.63593,87388.0,87379.0,0.01144439]
[1766599687504,0.01144295,87390.0,87381.0,0.06866426]
[1766599688017,0.01148,87391.0,87383.0,0.01144387]
[1766599688239,0.01148,87391.0,87388.0,0.0572159]
[1766599688597,0.01148,87391.0,87386.0,0.05721732]
[1766599688805,0.01148,87391.0,87387.0,0.01144334]
[1766599688957,0.01148,87391.0,87388.0,0.06865869]
[1766599689357,0.01148,87391.0,87388.0,0.01144321]
[1766599689544,0.01148,87391.0,87388.0,0.06865914]
[1766599689749,0.01148,87391.0,87388.0,0.01144321]
[1766599689944,0.01148,87391.0,87388.0,0.0686593]
[1766599690140,0.01148,87391.0,87389.0,0.05721495]
[1766599690611,0.01148,87391.0,87389.0,0.05721538]
[1766599691097,0.01148,87391.0,87388.0,0.0686593]
[1766599691502,0.01148,87391.0,87386.0,0.05721737]
[1766599691675,0.01148,87391.0,87386.0,0.01144348]
[1766599691858,0.01148,87391.0,87385.0,0.01144361]
[1766599692064,0.01148,87391.0,87387.0,0.01144334]
[1766599692296,0.01148,87391.0,87383.0,0.06866281]
[1766599692547,0.01148,87391.0,87384.0,0.06866234]
[1766599692912,0.01148,87391.0,87379.0,0.22888566]
[1766599692913,0.000549,87384.0,87379.0,0.22888566]
[1766599693106,0.000549,87384.0,87381.0,0.0686646]
[1766599693344,0.01144321,87388.0,87376.0,0.01153808]
[1766599693547,0.63593,87385.0,87375.0,0.06866952]
[1766599693694,0.63599086,87385.0,87376.0,0.06866868]
[1766599693902,0.70465277,87385.0,87374.0,0.01144505]
[1766599694101,0.70465277,87385.0,87369.0,0.0114457]
[1766599694102,0.000549,87374.0,87368.0,0.06867476]
[1766599694323,0.636479,87374.0,87371.0,0.01144544]
[1766599694527,0.63593,87374.0,87372.0,0.0572264]
[1766599695045,0.63593,87374.0,87371.0,0.01144544]
[1766599695207,0.63593,87374.0,87372.0,0.05722643]
[1766599695944,0.000549,87372.0,87370.0,0.01144557]
[1766599696142,0.01148,87377.0,87372.0,0.01144531]
[1766599696525,0.01148,87377.0,87374.0,0.01144505]
[1766599696724,0.01148,87377.0,87376.0,0.05722395]
[1766599696906,0.01129278,87377.0,87376.0,0.05722395]
[1766599697108,0.00011,87382.0,87377.0,0.0692169]
[1766599697294,0.01148,87381.0,87377.0,0.0686679]
[1766599697490,0.01148,87381.0,87374.0,0.01144505]
[1766599697750,0.01148,87380.0,87379.0,0.06866637]
[1766599697890,6.086e-05,87385.0,87380.0,0.000549]
[1766599698347,0.01144387,87383.0,87380.0,0.000549]
[1766599698563,0.01144505,87374.0,87370.0,0.01148]
[1766599698764,0.64741,87384.0,87372.0,0.01144531]
[1766599698765,0.01144413,87381.0,87372.0,0.01144531]
[1766599698911,0.01144413,87381.0,87370.0,0.02292557]
[1766599699116,0.011444,87382.0,87373.0,0.01144518]
[1766599699315,0.64741,87384.0,87375.0,0.05722448]
[1766599699714,0.64741,87384.0,87376.0,0.01144479]
[1766599700048,0.64741,87384.0,87376.0,0.06866858]
[1766599700230,0.64741,87384.0,87376.0,0.01144479]
[1766599700416,0.64741,87384.0,87377.0,0.01144465]
[1766599700601,0.64741,87384.0,87375.0,0.0572243]
[1766599700799,0.64741,87384.0,87375.0,0.06866922]
[1766599701022,0.64741,87384.0,87376.0,0.01144479]
[1766599701429,0.65885374,87384.0,87375.0,0.01144492]
[1766599702030,0.64741,87384.0,87376.0,0.01144479]
[1766599702238,0.64741,87384.0,87377.0,0.01144465]
[1766599702452,0.64741,87384.0,87378.0,0.01144452]
[1766599702854,0.64741,87384.0,87377.0,0.01144465]
[1766599703031,0.65885374,87384.0,87375.0,0.01144492]
[1766599703426,0.65885374,87384.0,87376.0,0.01144479]
[1766599703650,0.65885374,87384.0,87374.0,0.05722511]
[1766599703651,0.7046291,87384.0,87374.0,0.05722511]
[1766599703862,0.00055,87374.0,87371.0,0.01144544]
[1766599704064,0.011444,87382.0,87373.0,0.01144518]
[1766599704065,0.01148,87379.0,87373.0,0.01144518]
[1766599704262,0.01148,87379.0,87374.0,0.01144505]
[1766599704886,0.01148,87379.0,87377.0,0.05722277]
[1766599705091,1e-06,87379.0,87377.0,0.05722277]
[1766599705292,1e-06,87379.0,87378.0,0.05722264]
[1766599705493,6.086e-05,87385.0,87382.0,0.011444]
[1766599705671,0.01148,87382.0,87381.0,0.01144413]
[1766599705880,0.000549,87381.0,87378.0,0.01144452]
[1766599706360,0.01148,87382.0,87377.0,0.01144465]
[1766599706638,0.01148,87382.0,87379.0,0.06866637]
[1766599706820,0.01148,87382.0,87379.0,0.01144439]
[1766599706992,0.01148,87382.0,87381.0,0.05722067]
[1766599707979,6.086e-05,87385.0,87384.0,0.05721871]
[1766599708363,0.01148,87392.0,87384.0,0.01144374]
[1766599708566,0.01148,87392.0,87383.0,0.01144387]
[1766599709179,0.02292269,87392.0,87383.0,0.01144387]
[1766599709377,0.000549,87383.0,87382.0,0.06866402]
[1766599709883,0.64982,87391.0,87384.0,0.01144374]
[1766599710288,0.64982,87391.0,87385.0,0.01144361]
[1766599710486,0.01148,87392.0,87385.0,0.01144361]
[1766599710687,0.01148,87392.0,87386.0,0.01144348]
[1766599711331,0.01148,87392.0,87384.0,0.06866213]
[1766599711746,0.01148,87392.0,87385.0,0.01144361]
[1766599712089,0.64982,87391.0,87382.0,0.011444]
[1766599712504,0.000549,87382.0,87379.0,0.01144439]
[1766599712925,0.000549,87382.0,87378.0,0.01144452]
[1766599713126,0.06865971,87388.0,87379.0,0.01144439]
[1766599713323,0.64982,87389.0,87381.0,0.0686648]
[1766599713503,0.64982,87389.0,87382.0,0.011444]
[1766599713909,0.64982,87389.0,87385.0,0.01144361]
[1766599714229,0.000549,87385.0,87382.0,0.011444]
[1766599714405,0.000549,87385.0,87384.0,0.05721871]
[1766599714606,0.01148,87392.0,87387.0,0.01144334]
[1766599714830,0.01148,87392.0,87386.0,0.01144348]
[1766599715606,0.01148,87392.0,87385.0,0.06866166]
[1766599716028,0.01148,87392.0,87386.0,0.01144348]
[1766599716389,0.01148,87392.0,87387.0,0.01144334]
[1766599717789,0.68078,87391.0,87373.0,0.22890361]
[1766599717904,0.68078,87380.0,87369.0,0.05722802]
[1766599718125,0.68078,87380.0,87372.0,0.01144531]
[1766599718562,0.68078,87380.0,87369.0,6.086e-05]
[1766599718563,0.69222439,87379.0,87369.0,6.086e-05]
[1766599718824,0.68078,87377.0,87370.0,0.01144557]
[1766599719027,0.68078,87377.0,87369.0,6.086e-05]
[1766599719232,0.01144479,87376.0,87369.0,6.086e-05]
[1766599719481,0.01144492,87375.0,87369.0,6.086e-05]
[1766599720033,0.05722606,87373.0,87369.0,6.086e-05]
[1766599720191,0.68078,87373.0,87369.0,6.086e-05]
[1766599720807,0.01144479,87376.0,87369.0,6.086e-05]
[1766599721657,0.06866839,87377.0,87369.0,6.086e-05]
[1766599722081,0.68078,87377.0,87370.0,0.01144557]
[1766599722290,0.68078,87377.0,87370.0,0.06867292]
[1766599722503,0.01148,87384.0,87377.0,0.05722291]
[1766599722733,0.01148,87384.0,87378.0,0.01144452]
[1766599722905,0.01148,87384.0,87380.0,0.06866532]
[1766599723236,0.01148,87384.0,87377.0,0.0686679]
[1766599723352,0.01148,87384.0,87377.0,0.01144465]
[1766599723773,0.01148,87384.0,87377.0,0.06866768]
[1766599723976,0.01148,87384.0,87379.0,0.05722194]
[1766599724176,0.01148,87384.0,87378.0,0.06866713]
[1766599724406,0.01148,87384.0,87379.0,0.01144439]
[1766599724815,0.01148,87384.0,87378.0,0.06866713]
[1766599725032,0.01148,87384.0,87379.0,0.01144439]
[1766599725702,0.01148,87384.0,87380.0,0.01144426]
[1766599725907,0.01148,87384.0,87380.0,0.0686654]
[1766599726251,0.01148,87384.0,87383.0,0.05721936]
[1766599726452,0.68078,87391.0,87384.0,0.01144374]
[1766599726661,0.69226,87390.0,87381.0,0.01144413]
[1766599726899,0.01144308,87389.0,87380.0,0.01144426]
[1766599727113,0.69226,87390.0,87382.0,0.011444]
[1766599727327,0.69226,87390.0,87381.0,0.01144413]
[1766599727547,0.69226,87390.0,87383.0,0.01144387]
[1766599727760,0.69226,87390.0,87382.0,0.06866343]
[1766599728409,0.69226,87390.0,87383.0,0.01144387]
[1766599728621,0.69226,87390.0,87385.0,0.05721761]
[1766599728816,0.69226,87390.0,87386.0,0.01144348]
[1766599729059,0.69226,87390.0,87385.0,0.01144361]
[1766599729279,0.69226,87390.0,87384.0,0.06866241]
[1766599729485,0.69226,87390.0,87385.0,0.01144361]
[1766599730397,0.69226,87390.0,87384.0,0.06866241]
[1766599730602,0.69226,87390.0,87385.0,0.01144361]
[1766599731777,0.00011,87395.0,87388.0,0.05721609]
[1766599731979,0.00011,87395.0,87389.0,0.01144308]
[1766599731980,0.00548,87394.0,87389.0,0.01144308]
[1766599732407,0.00548,87394.0,87387.0,0.06866003]
[1766599733395,0.00548,87394.0,87384.0,0.06866186]
[1766599733604,0.00548,87394.0,87378.0,0.02292452]
[1766599733605,0.000549,87384.0,87378.0,0.02292452]
[1766599733829,0.68078,87388.0,87380.0,0.01144426]
[1766599734032,0.68133,87380.0,87374.0,0.01148]
[1766599734397,0.68078,87380.0,87374.0,0.01148]
[1766599734622,0.68078,87380.0,87374.0,0.02292505]
[1766599735013,0.68078,87380.0,87374.0,0.01148]
[1766599735338,0.00055,87374.0,87369.0,6.086e-05]
[1766599735478,0.68078,87373.0,87363.0,1.89e-06]
[1766599735680,0.68086925,87373.0,87367.0,0.01144596]
[1766599736311,0.68086925,87373.0,87366.0,0.0114461]
[1766599736527,0.68086925,87373.0,87368.0,0.01144583]
[1766599736735,0.68086925,87373.0,87367.0,0.06867569]
[1766599736898,0.68086925,87373.0,87369.0,0.0114457]
[1766599737098,0.68086925,87373.0,87370.0,0.01144557]
[1766599737298,0.68086925,87373.0,87370.0,0.0686734]
[1766599737509,0.68086925,87373.0,87370.0,0.01144557]
[1766599738171,0.68086925,87373.0,87370.0,0.06867343]
[1766599738314,0.68086925,87373.0,87369.0,0.0114457]
[1766599738504,0.68086925,87373.0,87363.0,0.01144838]
[1766599738702,0.67018,87371.0,87363.0,1.89e-06]
[1766599739015,0.67018,87371.0,87363.0,0.01144838]
[1766599739215,0.67018,87371.0,87363.0,1.89e-06]
[1766599739616,0.68162544,87371.0,87363.0,1.89e-06]
[1766599740260,0.68162544,87371.0,87361.0,0.06868038]
[1766599740806,0.68162544,87371.0,87353.0,0.00011]
[1766599740807,0.67018,87360.0,87353.0,0.00011]
[1766599740977,0.00055,87361.0,87355.0,0.01144754]
[1766599741155,0.67018,87362.0,87355.0,0.01144754]
[1766599741319,0.67018,87362.0,87356.0,0.01144741]
[1766599741523,0.67018,87360.0,87335.0,0.76596353]
[1766599741761,0.67018,87360.0,87347.0,0.05724236]
[1766599741762,0.67018,87353.0,87347.0,0.05724236]
[1766599741939,0.669631,87353.0,87349.0,0.06868931]
[1766599742139,0.01148,87354.0,87349.0,0.06868961]
[1766599742342,0.01148,87354.0,87350.0,0.06868909]
[1766599742655,0.01148,87354.0,87349.0,0.06868961]
[1766599742841,0.01148,87354.0,87350.0,0.01144819]
[1766599743046,0.01148,87355.0,87350.0,0.01144819]
[1766599743244,0.0112325,87404.0,87350.0,0.01144819]
[1766599743245,0.00734024,87357.0,87355.0,0.01144754]
[1766599743470,0.67018,87367.0,87359.0,0.01144701]
[1766599743824,0.67018,87367.0,87356.0,0.01144741]
[1766599743825,0.01144623,87365.0,87356.0,0.06868439]
[1766599744001,0.0229261,87366.0,87356.0,0.06868439]
[1766599744605,0.08015677,87366.0,87356.0,0.01144741]
[1766599744805,0.06867511,87368.0,87357.0,0.01144727]
[1766599744991,0.01148,87366.0,87357.0,0.01144727]
[1766599745193,0.01148,87366.0,87359.0,0.05723459]
[1766599745358,0.01148,87366.0,87358.0,0.01144714]
[1766599745561,0.02292596,87367.0,87357.0,0.06868325]
[1766599745967,0.01148,87367.0,87358.0,0.06868279]
[1766599746165,0.02292596,87367.0,87358.0,0.01144714]
[1766599746480,0.06867677,87366.0,87355.0,0.06868478]
[1766599746680,0.01144623,87365.0,87355.0,0.06868478]
[1766599746883,0.01144636,87364.0,87355.0,0.06868478]
[1766599747082,0.01111051,87364.0,87355.0,0.06868478]
[1766599747287,0.01111051,87364.0,87354.0,0.01148]
[1766599747504,0.01144714,87358.0,87354.0,0.010931]
[1766599747710,0.67018,87358.0,87346.0,0.01148]
[1766599747885,0.67018,87358.0,87350.0,0.06868903]
[1766599748218,0.67018,87358.0,87351.0,0.01144806]
[1766599748603,0.67018,87358.0,87351.0,0.06868826]
[1766599748838,0.68162714,87358.0,87349.0,0.06868981]
[1766599748986,0.68162714,87358.0,87349.0,0.01144832]
[1766599749336,0.67018,87358.0,87349.0,0.01144832]
[1766599749547,0.01144741,87356.0,87346.0,0.02292872]
[1766599749697,0.01144741,87356.0,87346.0,0.01148]
[1766599749898,0.06868469,87356.0,87347.0,0.01144859]
[1766599750134,0.06868469,87356.0,87346.0,0.02292872]
[1766599750339,0.73886312,87358.0,87348.0,0.01144845]
[1766599750722,0.73886312,87358.0,87346.0,0.02292872]
[1766599750723,0.06868372,87357.0,87346.0,0.02292872]
[1766599750981,0.06868463,87356.0,87346.0,0.08017102]
[1766599751138,0.06868463,87356.0,87344.0,0.0572444]
[1766599751139,0.06868698,87353.0,87344.0,0.01148]
[1766599751339,0.06868698,87353.0,87340.0,0.06880579]
[1766599751340,0.01144793,87352.0,87343.0,0.01144911]
[1766599751521,0.06868955,87350.0,87340.0,0.01159]
[1766599751721,0.01148,87352.0,87345.0,0.01144885]
[1766599751943,0.010931,87352.0,87345.0,0.01144885]
[1766599752120,0.010931,87352.0,87348.0,0.01144845]
[1766599752326,0.010931,87352.0,87349.0,0.01144832]
[1766599752523,0.010931,87352.0,87348.0,0.01144845]
[1766599752925,0.010931,87352.0,87349.0,0.01144832]
[1766599753188,0.010931,87352.0,87349.0,0.06868994]
[1766599753318,0.010931,87352.0,87351.0,0.05724032]
[1766599753523,0.00011,87360.0,87352.0,0.01144793]
[1766599753524,0.01148,87356.0,87352.0,0.01144793]
[1766599753951,0.01148,87356.0,87349.0,0.01144832]
[1766599754368,0.01148,87356.0,87351.0,0.01144806]
[1766599754563,0.01148,87356.0,87352.0,0.01144793]
[1766599755444,0.01148,87356.0,87350.0,0.01144819]
[1766599755864,0.01148,87356.0,87351.0,0.01144806]
[1766599756025,0.01148,87356.0,87352.0,0.01144793]
[1766599756564,0.01148,87356.0,87351.0,0.05724012]
[1766599756765,0.01093,87356.0,87352.0,0.06868741]
[1766599756968,0.01093,87356.0,87353.0,0.06868664]
[1766599757569,0.01093,87356.0,87354.0,0.05723836]
[1766599757982,0.01093,87356.0,87353.0,0.06868678]
[1766599758382,0.01093,87356.0,87353.0,0.0114478]
[1766599758745,0.00011,87360.0,87354.0,0.01144767]
[1766599758973,0.01148,87359.0,87355.0,0.06868492]
[1766599759336,0.01148,87363.0,87359.0,0.01144701]
[1766599759570,0.67018,87370.0,87361.0,0.06868026]
[1766599759771,0.01148,87366.0,87362.0,0.01144662]
[1766599759988,0.01148,87366.0,87362.0,0.0686797]
[1766599760150,0.01148,87367.0,87362.0,0.01144662]
[1766599760352,0.01148,87367.0,87358.0,0.01144714]
[1766599760688,0.08015582,87367.0,87357.0,0.06868356]
[1766599760889,0.01148,87367.0,87358.0,0.01144714]
[1766599761054,0.01148,87367.0,87359.0,0.01144701]
[1766599761588,0.01148,87367.0,87359.0,0.06868208]
[1766599761796,0.01148,87367.0,87360.0,0.01144688]
[1766599762090,0.01148,87367.0,87361.0,0.01144675]
[1766599762288,0.01148,87367.0,87360.0,0.06868129]
[1766599763067,0.01148,87367.0,87362.0,0.01144662]
[1766599763433,0.01148,87367.0,87360.0,0.06868129]
[1766599763434,0.01148,87367.0,87360.0,0.01144688]
[1766599763769,0.08015631,87367.0,87357.0,0.01144727]
[1766599763999,0.08015631,87367.0,87359.0,0.01144701]
[1766599764000,0.01148,87367.0,87359.0,0.01144701]
[1766599764492,0.02292596,87367.0,87358.0,0.06868282]
[1766599764894,0.01148,87367.0,87359.0,0.01144701]
[1766599765216,0.01128416,87369.0,87364.0,0.06867765]
[1766599765582,0.01128416,87369.0,87365.0,0.01144623]
[1766599766270,0.01128416,87369.0,87366.0,0.0114461]
[1766599766698,0.01144636,87364.0,87353.0,0.0114478]
[1766599766917,0.67018,87362.0,87354.0,0.05723772]
[1766599767129,0.65156411,87362.0,87356.0,0.06868417]
[1766599767345,0.65156411,87362.0,87357.0,0.01144727]
[1766599767539,0.68162583,87368.0,87357.0,0.01144727]
[1766599767702,0.67018,87368.0,87360.0,0.01144688]
[1766599768422,0.68162583,87368.0,87358.0,0.01144714]
[1766599768626,0.01144596,87367.0,87359.0,0.01144701]
[1766599768807,0.01144596,87367.0,87358.0,0.01144714]
[1766599769007,0.73885524,87368.0,87359.0,0.01144701]
[1766599769218,0.01144596,87367.0,87358.0,0.01144714]
[1766599769619,0.01144623,87365.0,87354.0,0.06868582]
[1766599769839,0.000549,87358.0,87355.0,0.01144754]
[1766599770040,0.01144636,87364.0,87355.0,0.01144754]
[1766599770318,0.01144623,87365.0,87356.0,0.01144741]
[1766599770536,0.01144623,87365.0,87355.0,0.01144754]
[1766599770715,0.64381,87362.0,87352.0,0.01148]
[1766599770936,0.001099,87355.0,87352.0,0.02292793]
[1766599771122,0.64381,87362.0,87354.0,0.01144767]
[1766599771945,0.64381,87362.0,87356.0,0.01144741]
[1766599772476,0.71248997,87362.0,87352.0,0.02292793]
[1766599772680,0.000549,87356.0,87352.0,0.02292793]
[1766599772983,0.64381,87362.0,87353.0,0.0114478]
[1766599773485,0.01144675,87361.0,87352.0,0.01148]
[1766599773686,0.64381,87361.0,87352.0,0.02292793]
[1766599773887,0.65525675,87361.0,87352.0,0.02292793]
[1766599774032,0.64381,87361.0,87352.0,0.02292793]
[1766599774234,0.64381,87361.0,87355.0,0.06868474]
[1766599775069,0.64381,87361.0,87356.0,0.01144741]
[1766599775266,0.64381,87361.0,87355.0,0.06868474]
[1766599775719,0.64381,87361.0,87356.0,0.01144741]
[1766599775894,0.64381,87361.0,87355.0,0.06868474]
[1766599776112,0.01144636,87364.0,87340.0,0.08247353]
[1766599776113,0.01148,87364.0,87340.0,0.08247353]
[1766599776317,0.64381,87346.0,87339.0,0.01144963]
[1766599776552,0.01144596,87367.0,87348.0,0.01144845]
[1766599776757,0.01144636,87364.0,87354.0,0.6895]
[1766599776949,0.01144741,87356.0,87348.0,0.01148]
[1766599777122,0.06868431,87357.0,87345.0,0.69549]
[1766599777123,0.71913727,87357.0,87345.0,0.69549]
[1766599777323,0.01144754,87355.0,87345.0,0.69549]
[1766599777647,0.01144793,87352.0,87345.0,0.69549]
[1766599778395,0.01144767,87354.0,87345.0,0.69549]
[1766599778800,0.0114478,87353.0,87345.0,0.69549]
[1766599779055,0.06868578,87355.0,87353.0,0.000549]
[1766599779056,0.01144754,87355.0,87353.0,0.000549]
[1766599779263,0.01144754,87355.0,87345.0,0.70693885]
[1766599779558,0.01144767,87354.0,87345.0,0.69549]
[1766599779915,0.05723777,87355.0,87345.0,0.70693885]
[1766599779916,0.06868531,87355.0,87345.0,0.70693885]
[1766599780120,0.01144754,87355.0,87345.0,0.70693885]
[1766599780538,0.01144845,87348.0,87345.0,0.69549]
[1766599780746,0.22895057,87356.0,87348.0,0.000549]
[1766599780747,0.01144741,87356.0,87348.0,0.000549]
[1766599780949,0.05724039,87351.0,87345.0,0.69549]
[1766599781149,0.01144819,87350.0,87345.0,0.69549]
[1766599781580,0.06868761,87352.0,87345.0,0.69549]
[1766599782020,0.01144806,87351.0,87345.0,0.69549]
[1766599782150,0.01144767,87354.0,87345.0,0.69549]
[1766599783396,0.05723835,87355.0,87345.0,0.69549]
[1766599784301,0.06868589,87355.0,87345.0,0.69549]
[1766599784690,0.0114478,87353.0,87345.0,0.69549]
[1766599785188,0.01144793,87352.0,87345.0,0.69549]
[1766599785502,0.0114478,87353.0,87345.0,0.69549]
[1766599785681,0.01144793,87352.0,87345.0,0.69549]
[1766599786510,0.05723973,87352.0,87345.0,0.69549]
[1766599786724,0.01144845,87348.0,87343.0,0.01148]
[1766599786923,0.06868926,87350.0,87343.0,0.01148]
[1766599787102,0.01144845,87348.0,87343.0,0.01148]
[1766599787470,0.01144859,87347.0,87343.0,0.01148]
[1766599787726,0.06869046,87349.0,87343.0,0.01148]
[1766599787960,0.01144859,87347.0,87343.0,0.01148]
[1766599788730,0.01144845,87348.0,87342.0,0.00011]
[1766599789091,0.01144832,87349.0,87342.0,0.00011]
[1766599789436,0.06869012,87349.0,87342.0,0.00011]
[1766599789644,0.01144832,87349.0,87342.0,0.00011]
[1766599789941,0.01144845,87348.0,87342.0,0.00011]
[1766599790124,0.06868999,87349.0,87342.0,0.00011]
[1766599790325,0.08016843,87351.0,87342.0,0.00011]
[1766599790721,0.01144819,87350.0,87342.0,0.00011]
[1766599790942,0.01144859,87347.0,87342.0,0.00011]
[1766599791123,0.05724753,87340.0,87330.0,0.6956]
[1766599791465,0.70769,87341.0,87333.0,0.01145042]
[1766599791762,0.70769,87341.0,87332.0,0.01145055]
[1766599791942,0.01148,87343.0,87334.0,0.01145029]
[1766599792123,0.01148,87343.0,87330.0,0.0116965]
[1766599792124,0.0801747,87343.0,87333.0,0.01145042]
[1766599792330,0.01148,87343.0,87333.0,0.01145042]
[1766599792925,0.01148,87343.0,87334.0,0.01145029]
[1766599793315,0.01148,87343.0,87333.0,0.06870204]
[1766599793558,0.01148,87343.0,87334.0,0.01145029]
[1766599796410,0.01148,87343.0,87335.0,0.01145016]
[1766599797428,0.01148,87343.0,87336.0,0.01145003]
[1766599797609,0.01148,87343.0,87339.0,0.01144963]
[1766599798215,0.01093,87343.0,87339.0,0.01144963]
[1766599798444,0.01093,87343.0,87338.0,0.70693976]
[1766599799178,0.01093,87343.0,87338.0,0.69549]
[1766599799717,0.01093,87343.0,87336.0,0.05725004]
[1766599799921,0.01093,87343.0,87336.0,0.0687]
[1766599800126,0.01093,87343.0,87337.0,0.05724945]
[1766599800326,0.01093,87343.0,87338.0,0.01144976]
[1766599800542,0.01093,87343.0,87339.0,0.01144963]
[1766599800745,0.01148,87345.0,87338.0,0.01144976]
[1766599800944,0.01148,87345.0,87338.0,0.06869858]
[1766599801166,0.01148,87345.0,87339.0,0.06869778]
[1766599801371,0.01148,87345.0,87339.0,0.01144963]
[1766599801744,0.01148,87345.0,87335.0,0.05725026]
[1766599801952,0.000549,87339.0,87336.0,0.06870001]
[1766599802167,0.01148,87345.0,87339.0,0.01144963]
[1766599802754,0.01148,87345.0,87336.0,0.0686997]
[1766599803105,0.01148,87345.0,87335.0,0.73516042]
[1766599803430,0.01148,87345.0,87337.0,0.0114499]
[1766599803872,0.01148,87345.0,87336.0,0.06869993]
[1766599804465,0.05724508,87344.0,87335.0,0.66646]
[1766599804815,0.05724508,87344.0,87333.0,0.05725194]
[1766599804816,0.000553,87335.0,87331.0,0.66646]
[1766599804945,0.06869673,87341.0,87331.0,0.66646]
[1766599805546,0.0114495,87340.0,87331.0,0.66646]
[1766599805779,0.01145108,87328.0,87317.0,0.66646]
[1766599806024,0.01148,87327.0,87317.0,0.66646]
[1766599806320,0.01145003,87336.0,87317.0,0.66646]
[1766599806321,0.0114495,87340.0,87327.0,0.01145121]
[1766599806525,0.01144963,87339.0,87329.0,0.66646]
[1766599806658,0.01148,87339.0,87334.0,0.01145029]
[1766599807265,0.01148,87339.0,87333.0,0.01145042]
[1766599808261,0.01144806,87351.0,87332.0,0.66646]
[1766599808467,0.01148,87349.0,87339.0,0.0686976]
[1766599808625,0.01148,87348.0,87341.0,0.01144937]
[1766599809472,0.01148,87348.0,87340.0,0.068697]
[1766599809681,0.01148,87348.0,87341.0,0.01144937]
[1766599810257,0.71278,87352.0,87342.0,0.06869545]
[1766599810461,0.01144845,87348.0,87338.0,0.66646]
[1766599810684,0.05724354,87347.0,87338.0,0.66646]
[1766599810889,0.02292872,87346.0,87338.0,0.665911]
[1766599811260,0.01144885,87345.0,87338.0,0.665911]
[1766599811895,0.02292872,87346.0,87338.0,0.665911]
[1766599812263,0.01144885,87345.0,87338.0,0.665911]
[1766599812989,0.02292872,87346.0,87338.0,0.665911]
[1766599813189,0.08017278,87346.0,87338.0,0.665911]
[1766599813593,0.01148,87346.0,87338.0,0.665911]
[1766599813802,0.01144859,87347.0,87338.0,0.67736076]
[1766599814149,0.01148,87346.0,87338.0,0.665911]